{"text_format":"1","workbook":"xlsx","n_sheets":2,"sheets":["Лист для печати","Лист для ввода"],"not_rendered":{"charts":0,"images":1,"macros":1,"external_links":0,"defined_names":2,"comments":0,"pivot_tables":0},"unopened":[],"bounds":{"document_bytes":16777216,"sheet_cells":100000,"rows_first":2000,"rows_last":500,"rows_between":2000,"halvings":0,"cell_chars":16384,"cell_head_chars":4096},"cells_cut":0,"cells_raw":0,"read":"whole","date_system":"1900"}

{"sheet":"Лист для печати","index":0,"n_rows":109,"n_cols":10,"rows_kept":109,"cut":false,"hidden":false,"merged":[[9,0,9,9],[10,0,10,9],[11,0,11,9],[12,0,12,9],[13,0,13,9],[15,0,17,0],[15,1,15,8],[15,9,17,9],[0,2,0,9],[16,1,16,2],[16,3,16,4],[16,5,16,6],[16,7,16,8],[1,6,1,8],[2,6,2,9],[4,0,4,9],[5,0,5,9],[6,0,6,9],[7,0,7,9],[8,0,8,9]]}
[null,null,"Включить содержимое.\nКнопку нажимать только после того, как \"Лист для ввода\" полностью заполнен.\nВ конце данного листа вставить данные для подписи."]
[null,null,null,null,null,null,"Ежеквартально, до 20- числа месяца, следующего за отчетным кварталом"]
[null,null,null,null,null,null,"на эл. адрес: monitor@krasnodar.ru"]
[]
[{"$f":"'Лист для ввода'!A5:J5","v":"ОТЧЕТ "}]
[{"$f":"'Лист для ввода'!A6:J6","v":"о результативности предоставления субсидии (субвенции) местным бюджетам \nмуниципальных образований Краснодарского края в рамках реализации \nгосударственной программы Краснодарского края"}]
[{"$f":"'Лист для ввода'!A7:J7","v":"\"Развитие сельского хозяйства и регулирование рынков сельскохозяйственной продукции, сырья и продовольствия\""}]
[{"$f":"'Лист для ввода'!A8:J8","v":"(наименование государственной программы)"}]
[{"$f":"'Лист для ввода'!A9:J9","v":"\"Обеспечение эпизоотического, ветеринарно-санитарного благополучия в Краснодарском крае и развитие  государственной ветеринарной службы Краснодарского края\""}]
[{"$f":"'Лист для ввода'!A10:J10","v":"(наименование подпрограммы государственной программы)"}]
[{"$f":"'Лист для ввода'!A11:J11","v":"Субвенции на осуществление государственных полномочий по предупреждению и ликвидации болезней животных, их лечению, отлову и содержанию безнадзорных животных, защите населения от болезнй, общих для человека и животных в части регулирования численности безнадзорных животных на территории муниципальных образований Краснодарского края "}]
[{"$f":"'Лист для ввода'!A12:J12","v":"(наименование субсидии на софинансирование расходного обязательства муниципального образования (далее – МО), возникающего при выполнении полномочий органов местного самоуправления по вопросам местного значения)"}]
[{"$f":"'Лист для ввода'!A13:J13","v":"за 1 квартал 2018 год"}]
[{"$f":"'Лист для ввода'!A14:J14","v":"(за I квартал, первое полугодие, 9 месяцев, год)"}]
[]
["Наименование муниципального образования  (получателя субсидии, субвенции)*","Наименование показателей результативности субсидии  (в скобках указать единицы измерения) 1)",null,null,null,null,null,null,null,"Причины невыполнения"]
[null,{"$f":"'Лист для ввода'!B17:C17","v":"1. численность отловленных безнадзорных животных                           (не менее ед.) "},null,{"$f":"'Лист для ввода'!D17:E17","v":"2. численность содержавшихся  безнадзорных животных                    (не менее ед.) "},null,{"$f":"'Лист для ввода'!F17:G17","v":"3. численность подобранных и утилизированных  павших животных (не менее ед.) "},null,{"$f":"'Лист для ввода'!H17:I17","v":"4."}]
[null,"Плановое значение2)","Фактическое значение","Плановое значение2)","Фактическое значение","Плановое значение2)","Фактическое значение","Плановое значение2)","Фактическое значение"]
[1,2,3,4,5,6,7,8,9,10]
["город-курорт Анапа ",624,null,624,null,null,null,null,null,"Соглашение  заключено"]
["город Армавир ",182,null,182,null,null,null,null,null,"Организация мероприятий по заключению соглашения"]
["город-курорт Геленджик ",302,null,302,null,null,null,null,null,"Организация мероприятий по заключению соглашения"]
["город Горячий Ключ ",285,null,285,null,null,null,null,null,"Организация мероприятий по заключению соглашения"]
["город Краснодар ",2202,null,2202,null,null,null,null,null,"Организация мероприятий по заключению соглашения"]
["город Новороссийск ",148,null,148,null,null,null,null,null,"Организация мероприятий по заключению соглашения"]
["город-курорт Сочи ",2419,null,2419,null,null,null,null,null,"Соглашение  заключено"]
["Абинский район,\nвсего район и поселения",19,0,19,0,0,0,0,0,"Соглашение  заключено"]
["Абинский район ",19,null,19]
["Апшеронский район,\nвсего район и поселения",37,0,37,0,0,0,0,0,"Соглашение  заключено"]
["Апшеронский район",37,null,37]
["Белоглинский район,\nвсего район и поселения ",13,0,13,0,0,0,0,0,"Соглашение  заключено"]
["Белоглинский район",13,null,13]
["Белореченский район,\nвсего район и поселения",157,0,157,0,0,0,0,0,"Соглашение  заключено"]
["Белореченский район",157,null,157]
["Брюховецкий район,\nвсего район и поселения",5,0,5,0,0,0,0,0,"Соглашение  заключено"]
["Брюховецкий район",5,null,5]
["Выселковский район,\nвсего район и поселения",12,0,12,0,0,0,0,0,"Соглашение  заключено"]
["Выселковский район",12,null,12]
["Гулькевичский район,\nвсего район и поселения",252,0,252,0,0,0,0,0,"Соглашение  заключено"]
["Гулькевичский район",252,null,252]
["Динской район,\nвсего район и поселения",252,0,252,0,0,0,0,0,"Организация мероприятий по заключению соглашения"]
["Динской район",252,null,252]
["Ейский район,\nвсего район и поселения",374,0,374,0,0,0,0,0,"Соглашение  заключено"]
["Ейский район",374,null,374]
["Кавказский район,\nвсего район и поселения",334,0,334,0,0,0,0,0,"Организация мероприятий по заключению соглашения"]
["Кавказский район",334,null,334]
["Калининский район,\nвсего район и поселения",9,0,9,0,0,0,0,0,"Организация мероприятий по заключению соглашения"]
["Калининский район",9,null,9]
["Каневской район,\nвсего район и поселения",41,0,41,0,0,0,0,0,"Соглашение  заключено"]
["Каневской район",41,null,41]
["Кореновский район,\nвсего район и поселения",252,0,252,0,0,0,0,0,"Организация мероприятий по заключению соглашения"]
["Кореновский район",252,null,252]
["Красноармейский район,\nвсего район и поселения",135,0,135,0,0,0,0,0,"Соглашение  заключено"]
["Красноармейский район",135,null,135]
["Крыловский район,\nвсего район и поселения",81,0,81,0,0,0,0,0,"Организация мероприятий по заключению соглашения"]
["Крыловский район",81,null,81]
["Крымский район,\nвсего район и поселения",56,0,56,0,0,0,0,0,"Организация мероприятий по заключению соглашения"]
["Крымский район",56,null,56]
["Курганинский район,\nвсего район и поселения",61,0,61,0,0,0,0,0,"Соглашение  заключено"]
["Курганинский район",61,null,61]
["Кущевский район,\nвсего район и поселения",34,0,34,0,0,0,0,0,"Организация мероприятий по заключению соглашения"]
["Кущевский район",34,null,34]
["Лабинский район,\nвсего район и поселения",15,0,15,0,0,0,0,0,"Организация мероприятий по заключению соглашения"]
["Лабинский район",15,null,15]
["Ленинградский район,\nвсего район и поселения",117,0,117,0,0,0,0,0,"Соглашение  заключено"]
["Ленинградский район",117,null,117]
["Мостовский район,\nвсего район и поселения",23,0,23,0,0,0,0,0,"Соглашение  заключено"]
["Мостовский район",23,null,23]
["Новокубанский район,\nвсего район и поселения",130,0,130,0,0,0,0,0,"Организация мероприятий по заключению соглашения"]
["Новокубанский район",130,null,130]
["Новопокровский район,\nвсего район и поселения",10,0,10,0,0,0,0,0,"Организация мероприятий по заключению соглашения"]
["Новопокровский район",10,null,10]
["Отрадненский район,\nвсего район и поселения",20,0,20,0,0,0,0,0,"Организация мероприятий по заключению соглашения"]
["Отрадненский район",20,null,20]
["Павловский район,\nвсего район и поселения",59,0,59,0,0,0,0,0,"Организация мероприятий по заключению соглашения"]
["Павловский район",59,null,59]
["Приморско-Ахтарский район,\nвсего район и поселения",74,0,74,0,0,0,0,0,"Организация мероприятий по заключению соглашения"]
["Приморско-Ахтарский район",74,null,74]
["Северский район,\nвсего район и поселения",109,0,109,0,0,0,0,0,"Соглашение  заключено"]
["Северский район",109,null,109]
["Славянский район,\nвсего район и поселения",316,0,316,0,0,0,0,0,"Организация мероприятий по заключению соглашения"]
["Славянский район",316,null,316]
["Староминский район,\nвсего район и поселения",101,0,101,0,0,0,0,0,"Организация мероприятий по заключению соглашения"]
["Староминский район",101,null,101]
["Тбилисский район,\nвсего район и поселения",44,0,44,0,0,0,0,0,"Соглашение   заключено"]
["Тбилисский район",44,null,44]
["Темрюкский район,\nвсего район и поселения",176,0,176,0,0,0,0,0,"Организация мероприятий по заключению соглашения"]
["Темрюкский район",176,null,176]
["Тимашевский район,\nвсего район и поселения",165,0,165,0,0,0,0,0,"Соглашение   заключено"]
["Тимашевский район",165,null,165]
["Тихорецкий район,\nвсего район и поселения",164,0,164,0,0,0,0,0,"Соглашение   заключено"]
["Тихорецкий район",164,null,164]
["Туапсинский район,\nвсего район и поселения",847,0,847,0,0,0,0,0,"Соглашение   заключено"]
["Туапсинский район",847,null,847]
["Успенский район,\nвсего район и поселения",15,0,15,0,0,0,0,0,"Организация мероприятий по заключению соглашения"]
["Успенский район",15,null,15]
["Усть-Лабинский район,\nвсего район и поселения",215,0,215,0,0,0,0,0,"Организация мероприятий по заключению соглашения"]
["Усть-Лабинский район",215,null,215]
["Щербиновский район,\nвсего район и поселения",32,0,32,0,0,0,0,0,"Организация мероприятий по заключению соглашения"]
["Щербиновский район",32,null,32]
["Всего",10918,null,10918]
[]
["Руководитель органа исполнительной власти, структурного подразделения администрации Краснодарского края",null,null,null,"Р.А. Кривонос"]
["Главный бухгалтер",null,null,null,"Н.В. Егорова"]
["Начальник отдела",null,null,null,"Д.В. Коломиец"]
[]
[]
[]
["исполнитель:  И.И. Белецкая                                 тел.267-17-81            "]

{"sheet":"Лист для ввода","index":1,"n_rows":495,"n_cols":10,"rows_kept":495,"cut":false,"hidden":false,"merged":[[487,0,487,9],[489,0,489,2],[483,0,483,9],[4,0,4,9],[15,0,17,0],[15,1,15,8],[15,9,17,9],[16,1,16,2],[16,3,16,4],[16,5,16,6],[16,7,16,8],[7,0,7,9],[8,0,8,9],[9,0,9,9],[10,0,10,9],[11,0,11,9],[486,0,486,9],[0,7,0,9],[5,0,5,9],[6,0,6,9],[484,0,484,9],[485,0,485,9],[12,0,12,9],[13,0,13,9]]}
[null,null,null,null,null,null,null,"Ежеквартально, до 20 числа месяца, следующего за отчетным кварталом"]
[null,null,null,null,null,null,null,"на эл. адрес: monitor@krasnodar.ru"]
[]
[]
["ОТЧЕТ "]
["о результативности предоставления субсидии (субвенции) местным бюджетам \nмуниципальных образований Краснодарского края в рамках реализации \nгосударственной программы Краснодарского края"]
["\"Развитие сельского хозяйства и регулирование рынков сельскохозяйственной продукции, сырья и продовольствия\""]
["(наименование государственной программы)"]
["\"Обеспечение эпизоотического, ветеринарно-санитарного благополучия в Краснодарском крае и развитие  государственной ветеринарной службы Краснодарского края\""]
["(наименование подпрограммы государственной программы)"]
["Субвенции на осуществление государственных полномочий по предупреждению и ликвидации болезней животных, их лечению, отлову и содержанию безнадзорных животных, защите населения от болезнй, общих для человека и животных в части регулирования численности безнадзорных животных на территории муниципальных образований Краснодарского края "]
["(наименование субсидии на софинансирование расходного обязательства муниципального образования (далее – МО), возникающего при выполнении полномочий органов местного самоуправления по вопросам местного значения)"]
["за 1 квартал 2018 год"]
["(за I квартал, первое полугодие, 9 месяцев, год)"]
[]
["Наименование муниципального образования  (получателя субсидии, субвенции)*","Наименование показателей результативности субсидии  (в скобках указать единицы измерения) 1)",null,null,null,null,null,null,null,"Причины невыполнения"]
[null,"1. численность отловленных безнадзорных животных                           (не менее ед.) ",null,"2. численность содержавшихся  безнадзорных животных                    (не менее ед.) ",null,"3. численность подобранных и утилизированных  павших животных (не менее ед.) ",null,"4."]
[null,"Плановое значение2)","Фактическое значение","Плановое значение2)","Фактическое значение","Плановое значение2)","Фактическое значение","Плановое значение2)","Фактическое значение"]
[1,2,3,4,5,6,7,8,9,10]
["город-курорт Анапа ",624,null,624,null,null,null,null,null,"Соглашение  заключено"]
["город Армавир ",182,null,182,null,null,null,null,null,"Организация мероприятий по заключению соглашения"]
["город-курорт Геленджик ",302,null,302,null,null,null,null,null,"Организация мероприятий по заключению соглашения"]
["город Горячий Ключ ",285,null,285,null,null,null,null,null,"Организация мероприятий по заключению соглашения"]
["город Краснодар ",2202,null,2202,null,null,null,null,null,"Организация мероприятий по заключению соглашения"]
["город Новороссийск ",148,null,148,null,null,null,null,null,"Организация мероприятий по заключению соглашения"]
["город-курорт Сочи ",2419,null,2419,null,null,null,null,null,"Соглашение  заключено"]
["Абинский район,\nвсего район и поселения",{"$f":"SUM(B28:B36)","v":19},{"$f":"SUM(C28:C36)","v":0},19,0,0,{"$f":"SUM(G28:G36)","v":0},0,0,"Соглашение  заключено"]
["Абинский район ",19,null,19]
[" Абинское г/п"]
[" Ахтырское г/п"]
[" Варнавинское с/п"]
[" Мингрельское с/п"]
[" Ольгинское с/п"]
[" Светлогорское с/п"]
[" Федоровское с/п"]
[" Холмское с/п"]
["Апшеронский район,\nвсего район и поселения",{"$f":"SUM(B38)","v":37},{"$f":"SUM(C38)","v":0},37,0,0,{"$f":"SUM(G38:G50)","v":0},0,0,"Соглашение  заключено"]
["Апшеронский район",37,null,37]
[" Апшеронское г/п"]
[" Кабардинское с/п"]
[" Кубанское с/п"]
[" Куринское с/п"]
[" Мезмайское с/п"]
[" Нефтегорское г/п"]
[" Нижегородское г/п"]
[" Новополянское с/п"]
[" Отдаленное с/п"]
[" Тверское с/п"]
[" Хадыженское г/п"]
[" Черниговское с/п"]
["Белоглинский район,\nвсего район и поселения ",{"$f":"SUM(B52:B56)","v":13},0,13,0,0,0,0,0,"Соглашение  заключено"]
["Белоглинский район",13,null,13]
[" Белоглинское с/п"]
[" Новопавловское с/п"]
[" Успенское с/п"]
[" Центральное с/п"]
["Белореченский район,\nвсего район и поселения",{"$f":"SUM(B58:B69)","v":157},0,157,0,0,0,0,0,"Соглашение  заключено"]
["Белореченский район",157,null,157]
[" Белореченское г/п"]
[" Бжедуховское с/п"]
[" Великовечненское с/п"]
[" Дружненское с/п"]
[" Первомайское с/п"]
[" Пшехское с/п"]
[" Родниковское с/п"]
[" Рязанское с/п"]
[" Школьненское с/п"]
[" Черниговское с/п"]
[" Южненское с/п"]
["Брюховецкий район,\nвсего район и поселения",{"$f":"SUM(B71:B79)","v":5},{"$f":"SUM(C71:C79)","v":0},5,0,0,0,0,0,"Соглашение  заключено"]
["Брюховецкий район",5,null,5]
[" Батуринское с/п"]
[" Большебейсугское с/п"]
[" Брюховецкое с/п"]
[" Новоджерелиевское с/п"]
[" Новосельское с/п"]
[" Переясловское с/п"]
[" Свободненское с/п"]
[" Чепигинское с/п"]
["Выселковский район,\nвсего район и поселения",{"$f":"SUM(B81:B91)","v":12},0,12,0,0,0,0,0,"Соглашение  заключено"]
["Выселковский район",12,null,12]
[" Бейсугское с/п"]
[" Бейсужекское с/п"]
[" Березанское с/п"]
[" Бузиновское с/п"]
[" Выселковское с/п"]
[" Газырское с/п"]
[" Ирклиевское с/п"]
[" Крупское с/п"]
[" Новобейсугское с/п"]
[" Новомалороссийское с/п"]
["Гулькевичский район,\nвсего район и поселения",{"$f":"SUM(B93:B108)","v":252},0,252,0,0,0,0,0,"Соглашение  заключено"]
["Гулькевичский район",252,null,252]
[" Гулькевичское г/п"]
[" Гирейское г/п"]
[" Венцы-Заря с/п"]
[" Комсомольское с/п"]
[" Красносельское г/п"]
[" Кубань с/п"]
[" Николенское с/п"]
[" Новоукраинское с/п"]
[" Отрадно-Кубанское с/п"]
[" Отрадно-Ольгинское с/п"]
[" Пушкинское с/п"]
[" Скобелевское с/п"]
[" Соколовское с/п"]
[" Союз 4-х хуторов с/п"]
[" Тысячное с/п"]
["Динской район,\nвсего район и поселения",{"$f":"SUM(B110:B120)","v":252},0,252,0,0,0,0,0,"Организация мероприятий по заключению соглашения"]
["Динской район",252,null,252]
[" Васюринское с/п"]
[" Динское с/п"]
[" Красносельское с/п"]
[" Мичуринское с/п"]
[" Нововеличковское с/п"]
[" Новотитаровское с/п"]
[" Первореченское с/п"]
[" Пластуновское с/п"]
[" Старомышастовское с/п"]
[" Южно-Кубанское с/п"]
["Ейский район,\nвсего район и поселения",{"$f":"SUM(B122:B133)","v":374},0,374,0,0,0,0,0,"Соглашение  заключено"]
["Ейский район",374,null,374]
[" Александровское с/п"]
[" Должанское с/п"]
[" Ейское г/п"]
[" Ейское с/п"]
[" Камышеватское с/п"]
[" Копанское с/п"]
[" Красноармейское с/п"]
[" Кухаривское с/п"]
[" Моревское с/п"]
[" Трудовое с/п"]
[" Ясенское с/п"]
["Кавказский район,\nвсего район и поселения",{"$f":"SUM(B135:B144)","v":334},0,334,0,0,0,0,0,"Организация мероприятий по заключению соглашения"]
["Кавказский район",334,null,334]
[" Дмитриевское с/п"]
[" им. М. Горького с/п"]
[" Кавказское с/п"]
[" Казанское с/п"]
[" Кропоткинское г/п"]
[" Лосевское с/п"]
[" Мирское с/п"]
[" Привольное с/п"]
[" Темижбекское с/п"]
["Калининский район,\nвсего район и поселения",{"$f":"SUM(B146:B154)","v":9},0,9,0,0,0,0,0,"Организация мероприятий по заключению соглашения"]
["Калининский район",9,null,9]
[" Бойкопонурское с/п"]
[" Гривенское с/п"]
[" Гришковское с/п"]
[" Джумайловское с/п"]
[" Калининское с/п"]
[" Куйбышевское с/п"]
[" Новониколаевское с/п"]
[" Старовеличковское с/п"]
["Каневской район,\nвсего район и поселения",{"$f":"SUM(B156:B165)","v":41},0,41,0,0,0,0,0,"Соглашение  заключено"]
["Каневской район",41,null,41]
[" Каневское с/п"]
[" Красногвардейское с/п"]
[" Кубанскостепное с/п"]
[" Новодерявянковское с/п"]
[" Новоминское с/п"]
[" Привольненское с/п"]
[" Придорожное с/п"]
[" Стародеревянковское с/п"]
[" Челбасское с/п"]
["Кореновский район,\nвсего район и поселения",{"$f":"SUM(B167:B177)","v":252},0,252,0,0,0,0,0,"Организация мероприятий по заключению соглашения"]
["Кореновский район",252,null,252]
[" Братковское с/п"]
[" Бураковское с/п"]
[" Дядьковское с/п"]
[" Журавское с/п"]
[" Кореновское г/п"]
[" Новоберезанское с/п"]
[" Платнировское с/п"]
[" Пролетарское с/п"]
[" Раздольненское с/п"]
[" Сергиевское с/п"]
["Красноармейский район,\nвсего район и поселения",{"$f":"SUM(B179:B189)","v":135},0,135,{"$f":"SUM(E179:E189)","v":0},0,0,0,0,"Соглашение  заключено"]
["Красноармейский район",135,null,135]
[" Ивановское с/п"]
[" Марьянское с/п"]
[" Новомышастовское с/п"]
[" Октябрьское с/п"]
[" Полтавское с/п"]
[" Протичкинское с/п"]
[" Староджерелиевское с/п"]
[" Старонижнестеблиевское с/п"]
[" Трудобеликовское с/п"]
[" Чебургольское с/п"]
["Крыловский район,\nвсего район и поселения",{"$f":"SUM(B191:B197)","v":81},0,81,0,0,0,0,0,"Организация мероприятий по заключению соглашения"]
["Крыловский район",81,null,81]
[" Крыловское с/п"]
[" Кугоейское с/п"]
[" Новопашковское с/п"]
[" Новосергиевское с/п"]
[" Октябрьское с/п"]
[" Шевченковское с/п"]
["Крымский район,\nвсего район и поселения",{"$f":"SUM(B199:B210)","v":56},0,56,0,0,0,0,0,"Организация мероприятий по заключению соглашения"]
["Крымский район",56,null,56]
[" Адагумское с/п"]
[" Варениковское с/п"]
[" Кеслеровское с/п"]
[" Киевское с/п"]
[" Крымское г/п"]
[" Мерчанское с/п"]
[" Молдаванское с/п"]
[" Нижнебаканское с/п"]
[" Пригородное с/п"]
[" Троицкое с/п"]
[" Южное с/п"]
["Курганинский район,\nвсего район и поселения",{"$f":"SUM(B212:B222)","v":61},0,61,0,0,0,0,0,"Соглашение  заключено"]
["Курганинский район",61,null,61]
[" Безводное с/п"]
[" Воздвиженское с/п"]
[" Константиновское с/п"]
[" Курганинское г/п"]
[" Михайловское с/п"]
[" Новоалексеевское с/п"]
[" Октябрьское с/п"]
[" Петропавловское с/п"]
[" Родниковское с/п"]
[" Темиргоевское с/п"]
["Кущевский район,\nвсего район и поселения",{"$f":"SUM(B224:B236)","v":34},{"$f":"SUM(C224:C236)","v":0},34,0,0,0,0,0,"Организация мероприятий по заключению соглашения"]
["Кущевский район",34,null,34]
[" Глебовское с/п"]
[" Ильинское с/п"]
[" Кисляковское с/п"]
[" Краснополянское с/п"]
[" Красносельское с/п"]
[" Кущевское с/п"]
[" Новомихайловское с/п"]
[" Первомайское с/п"]
[" Полтавченское с/п"]
[" Раздольненское с/п"]
[" Среднечубуркское с/п"]
[" Шкуринское с/п"]
["Лабинский район,\nвсего район и поселения",{"$f":"SUM(B238:B251)","v":15},0,15,0,0,0,0,0,"Организация мероприятий по заключению соглашения"]
["Лабинский район",15,null,15]
[" Ахметовское с/п"]
[" Владимирское с/п"]
[" Вознесенское с/п"]
[" Зассовское с/п"]
[" Каладжинское с/п"]
[" Лабинское г/п"]
[" Лучевое с/п"]
[" Отважненское с/п"]
[" Первосинюхинское с/п"]
[" Сладковское с/п"]
[" Упорненское с/п"]
[" Харьковское с/п"]
[" Чамлыкское с/п"]
["Ленинградский район,\nвсего район и поселения",{"$f":"SUM(B253:B265)","v":117},0,117,0,0,0,0,0,"Соглашение  заключено"]
["Ленинградский район",117,null,117]
[" Белохуторское с/п"]
[" Западное с/п"]
[" Коржовское с/п"]
[" Крыловское с/п"]
[" Куликовское с/п"]
[" Восточное с/п"]
[" Ленинградское с/п"]
[" Новоплатнировское с/п"]
[" Новоуманское с/п"]
[" Образцовое с/п"]
[" Первомайское с/п"]
[" Уманское с/п"]
["Мостовский район,\nвсего район и поселения",{"$f":"SUM(B267:B281)","v":23},0,23,0,0,0,0,0,"Соглашение  заключено"]
["Мостовский район",23,null,23]
[" Андрюковское с/п"]
[" Баговское с/п"]
[" Беноковское с/п"]
[" Бесленеевское с/п"]
[" Губское с/п"]
[" Костромское с/п"]
[" Краснокутское с/п"]
[" Махошевское с/п"]
[" Мостовское г/п"]
[" Переправненское с/п"]
[" Псебайское г/п"]
[" Унароковское с/п"]
[" Шедокское с/п"]
[" Ярославское с/п"]
["Новокубанский район,\nвсего район и поселения",{"$f":"SUM(B283:B292)","v":130},0,130,0,0,0,0,0,"Организация мероприятий по заключению соглашения"]
["Новокубанский район",130,null,130]
[" Бесскорбненское с/п"]
[" Верхнекубанское с/п"]
[" Ковалевское с/п"]
[" Ляпинское с/п"]
[" Новокубанское г/п"]
[" Новосельское с/п"]
[" Прикубанское с/п"]
[" Прочноокопское с/п"]
[" Советское с/п"]
["Новопокровский район,\nвсего район и поселения",{"$f":"SUM(B294:B302)","v":10},0,10,0,0,0,0,0,"Организация мероприятий по заключению соглашения"]
["Новопокровский район",10,null,10]
[" Горькобалковское с/п"]
[" Ильинское с/п"]
[" Калниболотское с/п"]
[" Кубанское с/п"]
[" Незамаевское с/п"]
[" Новоивановское с/п"]
[" Новопокровское с/п"]
[" Покровское с/п"]
["Отрадненский район,\nвсего район и поселения",{"$f":"SUM(B304:B318)","v":20},0,20,0,0,0,0,0,"Организация мероприятий по заключению соглашения"]
["Отрадненский район",20,null,20]
[" Бесстрашненское с/п"]
[" Благодарненское с/п"]
[" Красногвардейское с/п"]
[" Малотенгинское с/п"]
[" Маякское с/п"]
[" Надежненское с/п"]
[" Отрадненское с/п"]
[" Передовское с/п"]
[" Подгорненское с/п"]
[" Подгорносинюхинское с/п"]
[" Попутненское с/п"]
[" Рудьевское с/п"]
[" Спокойненское с/п"]
[" Удобненское с/п"]
["Павловский район,\nвсего район и поселения",{"$f":"SUM(B320:B331)","v":59},0,59,0,0,0,0,0,"Организация мероприятий по заключению соглашения"]
["Павловский район",59,null,59]
[" Атаманское с/п"]
[" Веселовское с/п"]
[" Незамаевское с/п"]
[" Новоулешковское с/п"]
[" Новопетровское с/п"]
[" Новопластуновское с/п"]
[" Павловское с/п"]
[" Северное с/п"]
[" Среднечелбасское"]
[" Староулешковское с/п"]
["Упорненское с/п"]
["Приморско-Ахтарский район,\nвсего район и поселения",{"$f":"SUM(B333:B342)","v":74},0,74,0,0,0,0,0,"Организация мероприятий по заключению соглашения"]
["Приморско-Ахтарский район",74,null,74]
[" Ахтарское с/п"]
[" Бородинское с/п"]
[" Бриньковское с/п"]
[" Новопокровское с/п"]
[" Ольгинское с/п"]
[" Приазовское с/п"]
["Приморско-Ахтарское г/п"]
[" Свободное с/п"]
[" Степное с/п"]
["Северский район,\nвсего район и поселения",{"$f":"SUM(B344:B356)","v":109},0,109,0,0,0,0,0,"Соглашение  заключено"]
["Северский район",109,null,109]
[" Азовское с/п"]
[" Афипское г/п"]
[" Григорьевское с/п"]
[" Ильское г/п"]
[" Калужское с/п"]
[" Львовское с/п"]
[" Михайловское с/п"]
[" Новодмитриевское с/п"]
[" Северское с/п"]
[" Смоленское с/п"]
[" Черноморское г/п"]
[" Шабановское с/п"]
["Славянский район,\nвсего район и поселения",{"$f":"SUM(B358:B373)","v":316},{"$f":"SUM(C358:C373)","v":0},316,0,0,0,0,0,"Организация мероприятий по заключению соглашения"]
["Славянский район",316,null,316]
[" Анастасиевское с/п   "]
[" Ачуевское с/п"]
[" Голубая Нива с/п"]
[" Забойское с/п "]
[" Кировское с/п"]
[" Коржевское с/п "]
[" Маевское с/п  "]
[" Петровское с/п"]
[" Прибрежное с/п "]
[" Прикубанское с/п"]
[" Протокское с/п "]
[" Рисовое с/п "]
[" Славянское г/п"]
[" Целинное с/п"]
[" Черноерковское с/п"]
["Староминский район,\nвсего район и поселения",{"$f":"SUM(B375:B380)","v":101},0,101,0,0,0,0,0,"Организация мероприятий по заключению соглашения"]
["Староминский район",101,null,101]
[" Канеловское с/п"]
[" Рассветовское с/п"]
[" Куйбышевское с/п"]
[" Новоясенское с/п"]
[" Староминское с/п"]
["Тбилисский район,\nвсего район и поселения",{"$f":"SUM(B382:B390)","v":44},0,44,0,0,0,0,0,"Соглашение   заключено"]
["Тбилисский район",44,null,44]
[" Алексее-Тенгинское с/п"]
[" Ванновское с/п"]
[" Геймановское с/п"]
[" Ловлинское с/п"]
[" Марьинское с/п"]
[" Нововладимировское с/п"]
[" Песчаное с/п"]
[" Тбилисское с/п"]
["Темрюкский район,\nвсего район и поселения",{"$f":"SUM(B392:B404)","v":176},0,176,{"$f":"SUM(E392:E404)","v":0},0,0,0,0,"Организация мероприятий по заключению соглашения"]
["Темрюкский район",176,null,176]
[" Ахтанизовское с/п"]
[" Вышестиблиевское с/п"]
[" Голубицкое с/п"]
[" Запорожское с/п"]
[" Краснострельское с/п"]
[" Курчанское с/п"]
[" Новотаманское с/п"]
[" Сенное с/п"]
[" Старотитаровское с/п"]
[" Таманское с/п"]
[" Темрюкское г/п"]
[" Фонталовское с/п"]
["Тимашевский район,\nвсего район и поселения",{"$f":"SUM(B406:B416)","v":165},0,165,0,0,0,0,0,"Соглашение   заключено"]
["Тимашевский район",165,null,165]
["Дербентское с/п"]
["Днепровское с/п"]
[" с/п Кубанец"]
[" Медведовское с/п"]
[" Незаймановское с/п"]
[" Новокорсунское с/п"]
[" Новоленинское с/п"]
[" Поселковое с/п"]
[" Роговское с/п"]
["Тимашевское г/п"]
["Тихорецкий район,\nвсего район и поселения",{"$f":"SUM(B418:B431)","v":164},0,164,0,0,0,0,0,"Соглашение   заключено"]
["Тихорецкий район",164,null,164]
["Алексеевское с/п"]
[" Архангельское с/п"]
[" Братское с/п"]
[" Еремизино-Борисовское с/п"]
[" Крутое с/п"]
[" Новорождественское с/п"]
[" Отрадненское с/п"]
[" Парковское с/п"]
[" Терновское с/п"]
[" Тихорецкое г/п"]
[" Фастовецкое с/п"]
[" Хоперское с/п"]
[" Юго-Северное с/п"]
["Туапсинский район,\nвсего район и поселения",{"$f":"SUM(B433:B443)","v":847},0,847,0,0,0,0,0,"Соглашение   заключено"]
["Туапсинский район",847,null,847]
[" Вельяминовское с/п"]
[" Георгиевское с/п"]
[" Джубгское г/п"]
[" Небугское с/п"]
[" Новомихайловское г/п"]
[" Октябрьское с/п"]
[" Тенгинское с/п"]
[" Туапсинское г/п"]
[" Шаумянское с/п"]
[" Шепсинское с/п"]
["Успенский район,\nвсего район и поселения",{"$f":"SUM(B445:B455)","v":15},{"$f":"SUM(C445:C455)","v":0},15,0,0,0,0,0,"Организация мероприятий по заключению соглашения"]
["Успенский район",15,null,15]
[" Веселовское с/п"]
[" Вольненское с/п"]
[" Коноковское с/п"]
[" Кургоковское с/п"]
[" Маламинское с/п"]
[" Николаевское с/п"]
[" Трехсельское с/п"]
[" Убеженское с/п"]
[" Урупское с/п"]
[" Успенское с/п"]
["Усть-Лабинский район,\nвсего район и поселения",{"$f":"SUM(B457:B472)","v":215},0,215,0,0,0,0,0,"Организация мероприятий по заключению соглашения"]
["Усть-Лабинский район",215,null,215]
[" Александровское с/п"]
[" Братское с/п"]
[" Вимовское с/п"]
[" Воронежское с/п"]
[" Восточное с/п"]
[" Двубратское с/п"]
[" Железное с/п"]
[" Кирпильское с/п"]
[" Ладожское с/п"]
[" Ленинское с/п"]
[" Некрасовское с/п"]
[" Новолабинское с/п"]
[" Суворовское с/п"]
[" Тенгинское с/п"]
[" Усть-Лабинское г/п "]
["Щербиновский район,\nвсего район и поселения",{"$f":"SUM(B474:B482)","v":32},0,32,0,0,0,0,0,"Организация мероприятий по заключению соглашения"]
["Щербиновский район",32,null,32]
[" Глафировское с/п"]
[" Ейскоукрепленское с/п"]
[" Екатериновское с/п"]
[" Николаевское с/п"]
[" Новощербиновское с/п"]
[" Старощербиновское с/п"]
[" Шабельское с/п"]
[" Щербиновское с/п"]
["ВСЕГО",{"$f":"B20+B21+B22+B23+B24+B25+B26+B27+B37+B51+B57+B70+B80+B92+B109+B121+B134+B145+B155+B166+B178+B190+B198+B211+B223+B237+B252+B266+B282+B293+B303+B319+B332+B343+B357+B374+B381+B391+B405+B417+B432+B444+B456+B473","v":10918},{"$f":"C20+C21+C22+C23+C24+C25+C26+C27+C37+C51+C57+C70+C80+C92+C109+C121+C134+C145+C155+C166+C178+C190+C198+C211+C223+C237+C252+C266+C282+C293+C303+C319+C332+C343+C357+C374+C381+C391+C405+C417+C432+C444+C456+C473","v":0},10918,0,0,{"$f":"G20+G21+G22+G23+G24+G25+G26+G27+G37+G51+G57+G70+G80+G92+G109+G121+G134+G145+G155+G166+G178+G190+G198+G211+G223+G237+G252+G266+G282+G293+G303+G319+G332+G343+G357+G374+G381+G391+G405+G417+G432+G444+G456+G473","v":0},0,0]
["1)При наличии в соглашении с муниципальным образованием более 1-го показателя результативности предоставления субсидии отчет дополняется необходимым количеством граф."]
["2)В соответствии с заключенным соглашением между главным распорядителем (распорядителем) средств краевого бюджета и муни-ципальным образованием о предоставлении субсидии из краевого бюджета."]
["Примечание. В форме не допускается исключать и добавлять графы и скрывать строки."]
["* Показатели результативности субвенции показаны с соответствии с заключенными соглашениями. Вносятся соответствующие изменения в программу."]
[]
[]
["Руководитель органа исполнительной власти, структурного подразделения администрации Краснодарского края ",null,null,null,null,"Р.А. Кривонос "]
[]
["Главный бухгалтер ",null,null,null,null,"Н.В. Егорова "]
["Начальник отдела ",null,null,null,null,"Д.В. Коломиец"]
[]
["исполнитель"," 267-17-81",null,null,null,"И.И. Белецкая"]